fUSD/lending_fUSD_20260217
["ID","MTS","AMOUNT","RATE_DAILY","PERIOD"]
[405841950,1771353054597,-1000.0,0.00017856,2]
[405841951,1771353054607,-200.0,0.00017856,2]
[405841952,1771353054616,-150.0,0.00017857,2]
[405841953,1771353054626,-1000.0,0.00017861,2]
[405841954,1771353054636,-500.0,0.00017862,20]
[405841955,1771353054647,-151.0,0.00017869,2]
[405841956,1771353054657,-150.0,0.0001787,2]
[405841957,1771353054667,-166.11141928,0.00017872,2]
[405841958,1771353054678,-1000.0,0.00017874,2]
[405841959,1771353054689,-1000.0,0.00017879,2]
[405841960,1771353054704,-1000.0,0.00017882,2]
[405841961,1771353054715,-1000.0,0.00017898,2]
[405841962,1771353054726,-1013.23,0.00017899,2]
[405841963,1771353054737,-500.0,0.00017899,2]
[405841964,1771353054748,-546.97,0.00017899,2]
[405841965,1771353054758,-1479.1,0.00017899,2]
[405841966,1771353054769,-1546.47,0.00017899,2]
[405841967,1771353054779,-516.5,0.00017899,2]
[405841968,1771353054789,-25000.0,0.000179,3]
[405841969,1771353054799,-20323.0,0.000179,6]
[405841970,1771353054809,-4488.74151012,0.000179,2]
[405841971,1771353054820,-1560.41290538,0.000179,2]
[405841972,1771353054830,-500.0,0.00017917,20]
[405841973,1771353054841,-1000.0,0.00017918,2]
[405841974,1771353054851,-1000.0,0.0001793,2]
[405841975,1771353054862,-150.0,0.00017931,2]
[405841976,1771353054872,-1000.0,0.00017941,2]
[405841977,1771353054882,-1000.0,0.00017945,2]
[405841978,1771353054893,-1000.0,0.00017951,2]
[405841979,1771353054904,-1000.0,0.00017963,2]
[405841980,1771353054915,-151.0,0.00017963,2]
[405841981,1771353054926,-151.0,0.00017963,2]
[405841982,1771353054937,-242.009051,0.00017963,2]
[405841983,1771353054947,-242.009051,0.00017963,2]
[405841984,1771353054957,-242.009051,0.00017963,2]
[405841985,1771353054967,-242.009051,0.00017963,2]
[405841986,1771353054977,-1000.0,0.00017966,2]
[405841987,1771353054987,-150.0,0.00017969,2]
[405841988,1771353054997,-224.65460803,0.00017972,20]
[405841989,1771353055008,-1013.23,0.00017978,2]
[405841990,1771353055017,-1013.23,0.00017978,2]
[405841991,1771353055027,-1013.23,0.00017978,2]
[405841992,1771353055037,-1013.23,0.00017978,2]
[405841993,1771353055047,-1013.32589873,0.00017978,2]
[405841994,1771353055057,-500.0,0.00017978,2]
[405841995,1771353055067,-500.0,0.00017978,2]
[405841996,1771353055077,-500.0,0.00017978,2]
[405841997,1771353055087,-383.99953744,0.00017978,2]
[405841998,1771353055098,-546.97,0.00017978,2]
[405841999,1771353055109,-546.97,0.00017978,2]
[405842000,1771353055119,-546.97,0.00017978,2]
[405842001,1771353055129,-546.97,0.00017978,2]
[405842002,1771353055139,-547.09394166,0.00017978,2]
[405842003,1771353055148,-1479.1,0.00017978,2]
[405842004,1771353055158,-1479.1,0.00017978,2]
[405842005,1771353055167,-1479.1,0.00017978,2]
[405842006,1771353055178,-1479.1,0.00017978,2]
[405842007,1771353055187,-1479.19350963,0.00017978,2]
[405842008,1771353055198,-1546.47,0.00017978,2]
[405842009,1771353055208,-1546.47,0.00017978,2]
[405842010,1771353055217,-1546.47,0.00017978,2]
[405842011,1771353055227,-1546.47,0.00017978,2]
[405842012,1771353055236,-1546.51311819,0.00017978,2]
[405842013,1771353055246,-516.5,0.00017978,2]
[405842014,1771353055257,-516.5,0.00017978,2]
[405842015,1771353055268,-516.5,0.00017978,2]
[405842016,1771353055278,-516.5,0.00017978,2]
[405842017,1771353055288,-516.63,0.00017978,2]
[405842018,1771353055299,-548025.24460349,0.00017979,2]
[405842019,1771353056012,-505.0,0.00017979,2]
[405842020,1771353056031,-646.52121302,0.00017979,2]
[405842021,1771353056042,-1253.34650676,0.00017979,2]
[405842022,1771353056059,-10360.00000014,0.00017979,2]
[405842023,1771353056087,-63266.00547919,0.00017979,2]
[405842024,1771353056097,-4673.0323916,0.00017979,2]
[405842025,1771353056106,-289.007678,0.00017979,2]
[405842026,1771353056115,-151.0,0.00017979,2]
[405842027,1771353056125,-151.0,0.00017979,2]
[405842028,1771353056135,-151.0,0.00017979,2]
[405842029,1771353056145,-151.0,0.00017979,2]
[405842030,1771353056157,-153.243847,0.00017979,2]
[405842031,1771353056168,-1000.0,0.00017983,2]
[405842032,1771353056180,-500.0,0.0001799,5]
[405842033,1771353056190,-503.03810445,0.0001799,2]
[405842034,1771353056200,-500.0,0.0001799,2]
[405842035,1771353056209,-500.0,0.0001799,2]
[405842036,1771353056220,-1000.0,0.00017991,2]
[405842037,1771353056230,-300.0,0.00017999,2]
[405842038,1771353056241,-502.75243677,0.00017999,2]
[405842039,1771353056251,-300.0,0.00017999,2]
[405842040,1771353056261,-666.0,0.00017999,2]
[405842041,1771353056271,-300.0,0.00017999,2]
[405842042,1771353056280,-306.66078572,0.00017999,2]
[405842043,1771353056290,-309.17152157,0.00017999,2]
[405842044,1771353056313,-13112.95811008,0.00017999,2]
[405842045,1771353056323,-300.0,0.00017999,2]
[405842046,1771353056332,-666.0,0.00017999,2]
[405842047,1771353056342,-150.0,0.00017999,2]
[405842048,1771353056351,-150.0,0.00017999,2]
[405842049,1771353056364,-150.0,0.00017999,2]
[405842050,1771353056385,-186.7212963,0.00017999,2]
[405842051,1771353056405,-150.0,0.00018,2]
[405842052,1771353056427,-127363.52395851,0.00018,2]
[405842053,1771353056817,-565.0373289,0.00012975,2]
[405842054,1771353057528,-3417.38097789,0.00012256,2]
[405842055,1771353057540,-69701.46350076,0.00012256,2]
[405842056,1771353057558,-646.0500007,0.00012256,2]
[405842058,1771353339113,-221.51,8.2e-05,2]
[405842059,1771353857147,35.63370334,1e-05,2]
[405842060,1771353857171,114.36629666,1e-05,2]
[405842061,1771353887629,155.02436849,8e-05,2]
[405842067,1771354026473,9900.0,7.7e-05,2]
[405842068,1771354027695,9830.60933485,7.8e-05,2]
[405842069,1771354027717,9969.39066515,7.8e-05,2]
[405842070,1771354029795,10030.60933485,7.9e-05,2]
[405842071,1771354029819,19769.39066515,7.9e-05,2]
[405842072,1771354031868,230.60933485,8e-05,2]
[405842073,1771354031889,20000.0,8e-05,2]
[405842081,1771354231837,-300.0,7.999e-05,2]
[405842082,1771354231847,-91.21049955,7.999e-05,2]
[405842083,1771354231859,-1108.78950045,7.999e-05,2]
[405842084,1771354231869,-300.0,7.999e-05,2]
[405842085,1771354231879,-250.0,8e-05,2]
[405842086,1771354231888,-2480.34083971,8e-05,2]
[405842087,1771354231914,-16989.04982544,8e-05,2]
[405842088,1771354231923,-250.0,8.207e-05,2]
[405842089,1771354231932,-4129.358,8.301e-05,2]
[405842090,1771354231942,-3776.86987632,8.301e-05,2]
[405842091,1771354231999,-712.57717035,8.301e-05,2]
[405842101,1771354237860,-1905.05167747,8.301e-05,2]
[405842105,1771354240006,-340.35,8.301e-05,2]
[405842106,1771354240165,-2.77017586,8.301e-05,2]
[405842107,1771354240175,-4501.689,8.332e-05,2]
[405842108,1771354240184,-433.184,8.332e-05,2]
[405842109,1771354240194,-882.98753462,8.332e-05,2]
[405842110,1771354240203,-882.9875346,8.373e-05,2]
[405842111,1771354240213,-13457.98,8.383e-05,2]
[405842112,1771354240223,-150.0,8.4e-05,2]
[405842113,1771354240232,-1000.0,8.4e-05,2]
[405842114,1771354240242,-266.49564598,8.4e-05,2]
[405842115,1771354240252,-500.0,8.4e-05,2]
[405842116,1771354240261,-166.36867494,8.4e-05,2]
[405842117,1771354240270,-500.0,8.4e-05,2]
[405842118,1771354240280,-500.0,8.4e-05,2]
[405842119,1771354240289,-500.0,8.4e-05,2]
[405842120,1771354240298,-196.59259528,8.4e-05,2]
[405842121,1771354240307,-500.0,8.4e-05,2]
[405842122,1771354240316,-500.0,8.4e-05,2]
[405842123,1771354240326,-621.6105002,8.4e-05,2]
[405842124,1771354240335,-3500000.0,8.401e-05,2]
[405842125,1771354240344,-882.9875346,8.414e-05,2]
[405842126,1771354240354,-1000.0,8.501e-05,2]
[405842127,1771354240365,-5914.98,8.52e-05,2]
[405842128,1771354240374,-7670.69,8.52e-05,2]
[405842129,1771354240383,-9999.99,8.601e-05,2]
[405842130,1771354240395,-9999.99,8.601e-05,2]
[405842131,1771354240405,-150.99,8.601e-05,2]
[405842132,1771354240414,-999.99,8.601e-05,2]
[405842133,1771354240423,-9999.99,8.601e-05,2]
[405842134,1771354240433,-299.99,8.601e-05,2]
[405842135,1771354240442,-591.7,8.601e-05,2]
[405842136,1771354240452,-150.99,8.601e-05,2]
[405842137,1771354240463,-250.0,8.799e-05,2]
[405842138,1771354240473,-420.0,8.799e-05,2]
[405842139,1771354240482,-420.0,8.799e-05,2]
[405842140,1771354240493,-1680.0,8.799e-05,2]
[405842141,1771354240504,-5186.32,8.842e-05,2]
[405842142,1771354240514,-200.0,8.921e-05,2]
[405842143,1771354240525,-788.8,9e-05,2]
[405842144,1771354240534,-500.0,9.181e-05,2]
[405842145,1771354240545,-2752.36,9.181e-05,2]
[405842146,1771354240555,-255.0,9.24e-05,2]
[405842147,1771354240564,-500.0,9.455e-05,2]
[405842148,1771354240574,-587.0,9.679e-05,2]
[405842149,1771354240584,-587.0,9.679e-05,2]
[405842150,1771354240594,-2351.0,9.679e-05,2]
[405842151,1771354240603,-500.0,9.726e-05,2]
[405842152,1771354240612,-500.0,9.726e-05,2]
[405842153,1771354240623,-500.0,9.726e-05,2]
[405842154,1771354240633,-500.0,9.726e-05,2]
[405842155,1771354240643,-500.0,9.726e-05,2]
[405842156,1771354240652,-500.0,9.726e-05,2]
[405842157,1771354240661,-150.0,9.726e-05,2]
[405842158,1771354240670,-500.0,9.726e-05,2]
[405842159,1771354240679,-201.09695119,9.726e-05,2]
[405842161,1771354240689,-500.0,9.726e-05,2]
[405842162,1771354240702,-500.0,9.729e-05,2]
[405842163,1771354240717,-500.0,9.781e-05,2]
[405842164,1771354240727,-500.0,9.781e-05,2]
[405842165,1771354240736,-500.0,9.781e-05,2]
[405842166,1771354240746,-500.0,9.781e-05,2]
[405842167,1771354240757,-500.0,9.781e-05,2]
[405842168,1771354240766,-500.0,9.781e-05,2]
[405842169,1771354240775,-150.0,9.781e-05,2]
[405842170,1771354240785,-500.0,9.781e-05,2]
[405842171,1771354240796,-500.0,9.781e-05,2]
[405842172,1771354240806,-500.0,9.836e-05,2]
[405842173,1771354240816,-500.0,9.836e-05,2]
[405842174,1771354240825,-500.0,9.836e-05,2]
[405842175,1771354240836,-500.0,9.836e-05,2]
[405842176,1771354240845,-500.0,9.836e-05,2]
[405842177,1771354240854,-500.0,9.836e-05,2]
[405842178,1771354240863,-150.0,9.836e-05,2]
[405842179,1771354240874,-500.0,9.836e-05,2]
[405842180,1771354240884,-500.0,9.836e-05,2]
[405842181,1771354240894,-4422.81714224,9.869e-05,2]
[405842182,1771354240904,-500.0,9.89e-05,2]
[405842183,1771354240914,-500.0,9.89e-05,2]
[405842184,1771354240923,-500.0,9.89e-05,2]
[405842185,1771354240933,-500.0,9.89e-05,2]
[405842186,1771354240944,-166.5683879,9.89e-05,2]
[405842187,1771354240955,-500.0,9.89e-05,2]
[405842188,1771354240965,-500.33776257,9.89e-05,2]
[405842189,1771354240974,-464.38268717,9.945e-05,2]
[405842190,1771354240984,-500.0,9.945e-05,2]
[405842191,1771354240994,-500.0,9.945e-05,2]
[405842192,1771354241003,-500.0,9.945e-05,2]
[405842193,1771354241012,-500.0,9.945e-05,2]
[405842194,1771354241022,-500.0,0.0001,2]
[405842195,1771354241031,-500.0,0.0001,2]
[405842196,1771354241040,-500.0,0.0001,2]
[405842197,1771354241050,-500.0,0.0001,2]
[405842198,1771354241059,-175.22048755,0.0001,2]
[405842199,1771354241069,-151.0,0.0001,2]
[405842200,1771354241078,-151.0,0.0001,2]
[405842201,1771354241088,-151.0,0.0001,2]
[405842202,1771354241097,-151.0,0.0001,2]
[405842203,1771354241106,-151.0,0.0001,2]
[405842204,1771354241116,-151.0,0.0001,2]
[405842205,1771354241126,-151.0,0.0001,2]
[405842206,1771354241136,-840.90433579,0.0001,2]
[405842207,1771354241145,-151.0,0.0001,2]
[405842208,1771354241155,-151.0,0.0001,2]
[405842209,1771354241164,-543.19683373,0.0001,2]
[405842210,1771354241173,-543.19683373,0.0001,2]
[405842211,1771354241182,-151.0,0.0001,2]
[405842212,1771354241191,-543.19683373,0.0001,2]
[405842213,1771354241201,-151.0,0.0001,2]
[405842214,1771354241211,-151.0,0.0001,2]
[405842215,1771354241221,-151.0,0.0001,2]
[405842216,1771354241230,-151.0,0.0001,2]
[405842217,1771354241239,-151.0,0.0001,2]
[405842218,1771354241249,-151.0,0.0001,2]
[405842219,1771354241258,-151.0,0.0001,2]
[405842220,1771354241267,-151.0,0.0001,2]
[405842221,1771354241276,-151.0,0.0001,2]
[405842222,1771354241286,-151.0,0.0001,2]
[405842223,1771354241295,-151.0,0.0001,2]
[405842224,1771354241306,-151.0,0.0001,2]
[405842225,1771354241316,-151.0,0.0001,2]
[405842226,1771354241325,-151.0,0.0001,2]
[405842227,1771354241335,-151.0,0.0001,2]
[405842228,1771354241345,-337.0,0.0001,2]
[405842229,1771354241354,-151.0,0.0001,2]
[405842230,1771354241363,-337.0,0.0001,2]
[405842231,1771354241372,-151.0,0.0001,2]
[405842232,1771354241382,-337.85061866,0.0001,2]
[405842233,1771354241391,-1580.81275906,0.0001,2]
[405842234,1771354241400,-1580.81275906,0.0001,2]
[405842235,1771354241409,-500.0,0.00010003,2]
[405842236,1771354241419,-500.0,0.00010055,2]
[405842237,1771354241429,-500.0,0.00010055,2]
[405842238,1771354241439,-500.0,0.00010055,2]
[405842239,1771354241448,-500.0,0.00010055,2]
[405842240,1771354241461,-500.0,0.0001011,2]
[405842241,1771354241470,-500.0,0.0001011,2]
[405842242,1771354241480,-500.0,0.0001011,2]
[405842243,1771354241490,-500.0,0.0001011,2]
[405842244,1771354241499,-433.0,0.00010164,2]
[405842245,1771354241509,-500.0,0.00010164,2]
[405842246,1771354241519,-500.0,0.00010164,2]
[405842247,1771354241529,-500.0,0.00010164,2]
[405842248,1771354241539,-500.0,0.00010164,2]
[405842249,1771354241549,-500.0,0.00010219,2]
[405842250,1771354241558,-361.9355564,0.00010219,2]
[405842251,1771354241568,-500.0,0.00010219,2]
[405842252,1771354241578,-414.0,0.00010219,2]
[405842253,1771354241588,-500.0,0.00010274,2]
[405842254,1771354241598,-500.0,0.00010274,2]
[405842255,1771354241607,-500.0,0.00010277,2]
[405842256,1771354241617,-898.32890406,0.00010292,2]
[405842257,1771354241627,-500.0,0.00010329,2]
[405842258,1771354241636,-498.26652801,0.00010329,2]
[405842259,1771354241646,-611.76249723,0.00010384,2]
[405842260,1771354241655,-433.63,0.00010449,2]
[405842261,1771354241664,-1401.0,0.00010475,2]
[405842262,1771354241674,-9999.99,0.00010475,2]
[405842263,1771354241683,-14381.39,0.00010475,2]
[405842264,1771354241693,-500.0,0.00010551,2]
[405842265,1771354241706,-250.0,0.00010569,2]
[405842266,1771354241716,-823.0,0.00010647,2]
[405842267,1771354242029,-823.0,0.00010647,2]
[405842268,1771354242041,-3292.0,0.00010647,2]
[405842269,1771354242050,-230.75,0.0001069,2]
[405842270,1771354242060,-500.0,0.00010825,2]
[405842271,1771354242069,-49700.0,0.000109,3]
[405842272,1771354242078,-214297.0,0.000109,2]
[405842273,1771354242087,-150.0,0.00010959,2]
[405842274,1771354242097,-41389.96350958,0.00011099,2]
[405842275,1771354242106,-41389.96350954,0.00011099,2]
[405842276,1771354242118,-41389.96350954,0.00011099,2]
[405842277,1771354242128,-41389.96350954,0.00011099,2]
[405842278,1771354242137,-41389.96350954,0.00011099,2]
[405842279,1771354242146,-41389.96350954,0.00011099,2]
[405842280,1771354242156,-41389.96350954,0.00011099,2]
[405842281,1771354242166,-500.0,0.00011099,2]
[405842282,1771354242175,-69429.40366063,0.00011099,2]
[405842283,1771354242185,-69429.40366061,0.00011099,2]
[405842284,1771354242194,-69429.40366061,0.00011099,2]
[405842285,1771354242204,-69429.40366061,0.00011099,2]
[405842286,1771354242214,-69429.40366061,0.00011099,2]
[405842287,1771354242223,-69429.40366061,0.00011099,2]
[405842288,1771354242232,-736.0,0.00011181,2]
[405842289,1771354242242,-250.0,0.00011236,2]
[405842290,1771354242252,-41389.96350954,0.00011238,2]
[405842291,1771354242260,-5530.0,0.000113,3]
[405842292,1771354242270,-69429.40366061,0.00011314,2]
[405842293,1771354242279,-500.0,0.00011373,2]
[405842294,1771354242288,-166.66,0.00011546,2]
[405842295,1771354242298,-9419.8,0.0001158,2]
[405842296,1771354242307,-5195.22072312,0.00011614,2]
[405842297,1771354242316,-500.0,0.00011647,2]
[405842298,1771354242325,-41389.96350954,0.00011655,2]
[405842299,1771354242334,-5530.0,0.000117,5]
[405842300,1771354242344,-365.0,0.00011711,2]
[405842301,1771354242354,-1152.0,0.00011711,2]
[405842302,1771354242363,-2332.35515284,0.00011711,2]
[405842304,1771354242956,-2276.64484716,0.00011711,2]
[405842305,1771354242966,-166.66,0.00011789,2]
[405842306,1771354242975,-69429.40366061,0.00011814,2]
[405842307,1771354242985,-500.0,0.00011921,2]
[405842309,1771354242994,-38875.7493,0.00012026,2]
[405842311,1771354243003,-166.66,0.00012032,2]
[405842312,1771354243012,-41389.96350954,0.00012073,2]
[405842313,1771354243021,-228766.19707952,0.00012126,2]
[405842327,1771354245929,-497.975,0.00012126,2]
[405842328,1771354246032,-429.72335577,0.00012126,2]
[405842329,1771354246045,-463.35377226,0.00012126,2]
[405842340,1771354516299,244.29915936,0.00018,30]
[405842345,1771354614347,2046.86985652,0.00018,30]
[405842401,1771355371721,1600.0,6.726e-05,2]
[405842412,1771355431990,-745.33102828,6.905e-05,2]
[405842414,1771355432002,-878.94188727,6.905e-05,2]
[405842415,1771355432015,-228.14708445,6.905e-05,2]
[405842416,1771355432026,-250.0,7.038e-05,2]
[405842417,1771355432039,-532.75,7.171e-05,2]
[405842418,1771355432050,-532.75,7.237e-05,2]
[405842419,1771355432059,-532.75,7.304e-05,2]
[405842420,1771355432071,-138.98770189,7.371e-05,2]
[405842421,1771355432083,-393.76229811,7.371e-05,2]
[405842422,1771355432093,-530.29024055,7.437e-05,2]
[405842423,1771355432109,-2.45975945,7.437e-05,2]
[405842424,1771355432118,-532.75,7.504e-05,2]
[405842425,1771355432128,-337.0,7.534e-05,2]
[405842426,1771355432138,-1200.0,7.543e-05,2]
[405842427,1771355432149,-300.0,7.544e-05,2]
[405842428,1771355432158,-4501.689,7.545e-05,2]
[405842429,1771355432167,-140.12792903,7.545e-05,2]
[405842430,1771355432179,-293.05607097,7.545e-05,2]
[405842431,1771355432188,-1042.41158094,7.566e-05,2]
[405842432,1771355432201,-557.58841906,7.566e-05,2]
[405842433,1771355432210,-532.75,7.57e-05,2]
[405842434,1771355432220,-250.0,7.595e-05,2]
[405842435,1771355432229,-250.0,7.595e-05,2]
[405842436,1771355432239,-500.0,7.598e-05,2]
[405842437,1771355432248,-500.0,7.598e-05,2]
[405842438,1771355432258,-500.0,7.598e-05,2]
[405842440,1771355432268,-500.0,7.598e-05,2]
[405842442,1771355432277,-500.0,7.598e-05,2]
[405842444,1771355432286,-585.72434426,7.598e-05,2]
[405842446,1771355432299,-500.0,7.598e-05,2]
[405842448,1771355432308,-500.0,7.598e-05,2]
[405842450,1771355432317,-500.0,7.598e-05,2]
[405842453,1771355432327,-500.0,7.598e-05,2]
[405842456,1771355432338,-500.0,7.598e-05,2]
[405842459,1771355432348,-500.0,7.598e-05,2]
[405842462,1771355432357,-500.0,7.598e-05,2]
[405842465,1771355432366,-500.0,7.598e-05,2]
[405842467,1771355432376,-500.0,7.598e-05,2]
[405842470,1771355432385,-500.0,7.598e-05,2]
[405842473,1771355432395,-500.0,7.598e-05,2]
[405842475,1771355432405,-500.0,7.598e-05,2]
[405842477,1771355432415,-500.0,7.598e-05,2]
[405842479,1771355432424,-500.0,7.598e-05,2]
[405842481,1771355432433,-500.0,7.598e-05,2]
[405842483,1771355432443,-500.0,7.598e-05,2]
[405842485,1771355432452,-500.0,7.598e-05,2]
[405842487,1771355432461,-150.0,7.598e-05,2]
[405842489,1771355432471,-12713.64818439,7.599e-05,2]
[405842491,1771355432482,-1825.06357538,7.599e-05,2]
[405842492,1771355432493,-726.89716718,7.599e-05,2]
[405842493,1771355432521,-500.0,7.598e-05,2]
[405842494,1771355432530,-3435.87063297,7.599e-05,2]
[405842495,1771355432542,-8301.16846777,7.599e-05,2]
[405842496,1771355432552,-861.64940807,7.599e-05,2]
[405842497,1771355432564,-5265.45272466,7.599e-05,2]
[405842498,1771355432587,-9805.73974299,7.599e-05,2]
[405842499,1771355432598,-320.65660765,7.599e-05,2]
[405842500,1771355432610,-625.6194234,7.599e-05,2]
[405842501,1771355432623,-1321.58232096,7.599e-05,2]
[405842502,1771355432635,-672.34979906,7.599e-05,2]
[405842503,1771355432646,-3521.02374977,7.599e-05,2]
[405842504,1771355432658,-1127.18000044,7.599e-05,2]
[405842505,1771355432674,-98098.20361808,7.599e-05,2]
[405842506,1771355432687,-34300.69717065,7.599e-05,2]
[405842507,1771355432699,-70189.04922066,7.599e-05,2]
[405842508,1771355432710,-1254.41808677,7.599e-05,2]
[405842509,1771355432722,-324.01857318,7.599e-05,2]
[405842516,1771355438159,-251.84898469,7.599e-05,2]
[405842517,1771355438212,-40894.87315933,7.599e-05,2]
[405842518,1771355438267,-358.15101531,7.599e-05,2]
[405842614,1771355440315,-3600.58630183,7.599e-05,2]
[405842615,1771355440328,-3200204.25206481,7.599e-05,2]
[405842616,1771355440339,-6737.6189,7.599e-05,2]
[405842617,1771355440349,-1560.4129054,7.599e-05,2]
[405842618,1771355440359,-185.29568936,7.599e-05,2]
[405842619,1771355440368,-3473.10657162,7.599e-05,2]
[405842620,1771355440378,-299.99,7.621e-05,2]
[405842621,1771355440387,-532.75,7.637e-05,2]
[405842622,1771355440396,-1471.46208079,7.698e-05,2]
[405842623,1771355440406,-194.0,7.7e-05,2]
[405842624,1771355440415,-4900.0,7.7e-05,2]
[405842625,1771355440425,-532.75,7.704e-05,2]
[405842626,1771355440434,-9999.99,7.741e-05,2]
[405842627,1771355440444,-7670.69,7.741e-05,2]
[405842628,1771355440453,-5914.98,7.741e-05,2]
[405842629,1771355440463,-150.99,7.741e-05,2]
[405842630,1771355440472,-9999.99,7.741e-05,2]
[405842631,1771355440482,-9999.99,7.741e-05,2]
[405842632,1771355440491,-999.99,7.741e-05,2]
[405842633,1771355440500,-591.7,7.741e-05,2]
[405842634,1771355440510,-150.99,7.741e-05,2]
[405842635,1771355440519,-532.75,7.77e-05,2]
[405842636,1771355440528,-9900.0,7.8e-05,2]
[405842637,1771355440538,-532.75,7.837e-05,2]
[405842638,1771355440547,-14900.0,7.9e-05,2]
[405842639,1771355440556,-532.75,7.903e-05,2]
[405842640,1771355440566,-532.75,7.97e-05,2]
[405842641,1771355440575,-19900.0,8e-05,2]
[405842642,1771355440586,-532.75,8.037e-05,2]
[405842643,1771355440595,-532.75,8.103e-05,2]
[405842644,1771355440604,-532.75,8.17e-05,2]
[405842645,1771355440613,-500.0,8.219e-05,2]
[405842646,1771355440623,-532.75,8.236e-05,2]
[405842647,1771355440632,-1680.0,8.297e-05,2]
[405842648,1771355440641,-420.0,8.298e-05,2]
[405842649,1771355440651,-532.75,8.303e-05,2]
[405842650,1771355440660,-255.0,8.358e-05,2]
[405842651,1771355440669,-532.75,8.37e-05,2]
[405842652,1771355440678,-1600.0,8.407e-05,2]
[405842653,1771355440687,-532.75,8.436e-05,2]
[405842654,1771355440696,-500.0,8.493e-05,2]
[405842655,1771355440706,-562.2,8.613e-05,2]
[405842656,1771355440715,-500.0,8.767e-05,2]
[405842657,1771355440724,-788.8,9e-05,2]
[405842658,1771355440734,-772.07,9.008e-05,2]
[405842659,1771355440743,-320.05,9.019e-05,2]
[405842660,1771355440752,-500.0,9.041e-05,2]
[405842661,1771355440761,-933.51,9.043e-05,2]
[405842662,1771355440771,-500.0,9.093e-05,2]
[405842663,1771355440780,-500.0,9.093e-05,2]
[405842664,1771355440789,-150.0,9.093e-05,2]
[405842665,1771355440798,-500.0,9.093e-05,2]
[405842666,1771355440807,-500.0,9.093e-05,2]
[405842667,1771355440816,-150.0,9.093e-05,2]
[405842668,1771355440826,-150.0,9.093e-05,2]
[405842669,1771355440835,-500.0,9.093e-05,2]
[405842670,1771355440844,-500.0,9.093e-05,2]
[405842671,1771355440854,-150.0,9.093e-05,2]
[405842672,1771355440863,-500.0,9.093e-05,2]
[405842673,1771355440873,-500.0,9.093e-05,2]
[405842674,1771355440882,-200.0,9.093e-05,2]
[405842675,1771355440891,-150.0,9.093e-05,2]
[405842676,1771355440902,-250.0,9.124e-05,2]
[405842677,1771355440912,-2351.0,9.127e-05,2]
[405842678,1771355440923,-587.0,9.128e-05,2]
[405842679,1771355440933,-259.01,9.142e-05,2]
[405842680,1771355440943,-510.76125773,9.148e-05,2]
[405842681,1771355440955,-500.0,9.148e-05,2]
[405842682,1771355440965,-150.0,9.148e-05,2]
[405842683,1771355440975,-500.0,9.148e-05,2]
[405842684,1771355440990,-500.0,9.148e-05,2]
[405842685,1771355441002,-500.0,9.148e-05,2]
[405842686,1771355441012,-500.0,9.148e-05,2]
[405842687,1771355441021,-500.0,9.148e-05,2]
[405842688,1771355441034,-500.0,9.148e-05,2]
[405842689,1771355441045,-150.0,9.148e-05,2]
[405842690,1771355441056,-433.0,9.193e-05,2]
[405842691,1771355441067,-500.0,9.203e-05,2]
[405842692,1771355441078,-237.18600864,9.203e-05,2]
[405842693,1771355441089,-500.0,9.203e-05,2]
[405842694,1771355441099,-500.0,9.203e-05,2]
[405842695,1771355441110,-500.0,9.203e-05,2]
[405842696,1771355441120,-500.0,9.203e-05,2]
[405842697,1771355441131,-329.95129651,9.203e-05,2]
[405842698,1771355441140,-500.0,9.203e-05,2]
[405842699,1771355441150,-150.0,9.203e-05,2]
[405842700,1771355441159,-1600.0,9.248e-05,2]
[405842701,1771355441168,-500.0,9.257e-05,2]
[405842702,1771355441177,-500.0,9.257e-05,2]